fUSD/lending_fUSD_20260509
["ID","MTS","AMOUNT","RATE_DAILY","PERIOD"]
[421920206,1778332295000,-2077.41,0.0004177,120]
[421920211,1778332295000,-2077.41,0.0004177,120]
[421920223,1778332295000,-329.81149123,0.0004177,120]
[421920204,1778332295000,-2077.41,0.0004177,120]
[421920248,1778332295000,-500.0,0.0004177,120]
[421920241,1778332295000,-500.0,0.0004177,120]
[421920238,1778332295000,-420.06847545,0.0004177,120]
[421920267,1778332295000,-313.1,0.0004177,120]
[421920269,1778332295000,-500.0,0.0004177,120]
[421920268,1778332295000,-500.0,0.0004177,120]
[421920272,1778332295000,-500.0,0.0004177,120]
[421920270,1778332295000,-500.0,0.0004177,120]
[421920271,1778332295000,-500.0,0.0004177,120]
[421920276,1778332295000,-500.0,0.0004177,120]
[421920277,1778332295000,-500.0,0.0004177,120]
[421920278,1778332295000,-500.0,0.0004177,120]
[421920279,1778332295000,-500.0,0.0004177,120]
[421920264,1778332295000,-541.0,0.0004177,120]
[421920283,1778332295000,-500.0,0.0004177,120]
[421920287,1778332295000,-497.57408998,0.0004177,120]
[421920282,1778332295000,-500.0,0.0004177,120]
[421920284,1778332295000,-500.0,0.0004177,120]
[421920281,1778332295000,-500.0,0.0004177,120]
[421920286,1778332295000,-500.0,0.0004177,120]
[421920289,1778332295000,-500.0,0.0004177,120]
[421920290,1778332295000,-500.0,0.0004177,120]
[421920288,1778332295000,-500.0,0.0004177,120]
[421920236,1778332295000,-500.0,0.0004177,120]
[421920291,1778332295000,-500.0,0.0004177,120]
[421920285,1778332295000,-500.0,0.0004177,120]
[421920274,1778332295000,-500.0,0.0004177,120]
[421920280,1778332295000,-500.0,0.0004177,120]
[421920275,1778332295000,-500.0,0.0004177,120]
[421920242,1778332295000,-500.0,0.0004177,120]
[421920262,1778332295000,-10214.67493077,0.0004177,120]
[421920240,1778332295000,-500.0,0.0004177,120]
[421920243,1778332295000,-500.0,0.0004177,120]
[421920244,1778332295000,-500.0,0.0004177,120]
[421920239,1778332295000,-500.0,0.0004177,120]
[421920257,1778332295000,-500.0,0.0004177,120]
[421920252,1778332295000,-500.0,0.0004177,120]
[421920251,1778332295000,-500.0,0.0004177,120]
[421920253,1778332295000,-500.0,0.0004177,120]
[421920256,1778332295000,-500.0,0.0004177,120]
[421920254,1778332295000,-500.0,0.0004177,120]
[421920249,1778332295000,-500.0,0.0004177,120]
[421920260,1778332295000,-5006.98926388,0.0004177,7]
[421920250,1778332295000,-500.0,0.0004177,120]
[421920255,1778332295000,-500.0,0.0004177,120]
[421920259,1778332295000,-27854.61149178,0.0004177,7]
[421920261,1778332295000,-119975.73926189,0.0004177,30]
[421920258,1778332295000,-198.81829147,0.0004177,120]
[421920263,1778332295000,-711.88760006,0.0004177,30]
[421920273,1778332295000,-500.0,0.0004177,120]
[421920266,1778332295000,-151.6314194,0.0004177,120]
[421920265,1778332295000,-541.0,0.0004177,120]
[421920329,1778332296000,-500.0,0.0004177,120]
[421920332,1778332296000,-500.0,0.0004177,120]
[421920323,1778332296000,-524.343347,0.0004177,120]
[421920330,1778332296000,-500.0,0.0004177,120]
[421920331,1778332296000,-500.0,0.0004177,120]
[421920327,1778332296000,-508.04,0.0004177,120]
[421920333,1778332296000,-500.0,0.0004177,120]
[421920326,1778332296000,-500.0,0.0004177,120]
[421920325,1778332296000,-500.0,0.0004177,120]
[421920328,1778332296000,-500.0,0.0004177,120]
[421920324,1778332296000,-500.0,0.0004177,120]
[421920341,1778332296000,-536.31107363,0.0004177,120]
[421920346,1778332296000,-239.0141327,0.0004177,120]
[421920339,1778332296000,-500.0,0.0004177,120]
[421920340,1778332296000,-500.0,0.0004177,120]
[421920334,1778332296000,-500.0,0.0004177,120]
[421920347,1778332296000,-529.926194,0.0004177,120]
[421920336,1778332296000,-500.0,0.0004177,120]
[421920343,1778332296000,-500.0,0.0004177,120]
[421920342,1778332296000,-500.0,0.0004177,120]
[421920335,1778332296000,-500.0,0.0004177,120]
[421920337,1778332296000,-500.0,0.0004177,120]
[421920356,1778332296000,-500.0,0.0004177,120]
[421920345,1778332296000,-500.0,0.0004177,120]
[421920318,1778332296000,-500.0,0.0004177,120]
[421920344,1778332296000,-164.14729101,0.0004177,120]
[421920322,1778332296000,-307.0742524,0.0004177,120]
[421920300,1778332296000,-500.0,0.0004177,120]
[421920320,1778332296000,-500.0,0.0004177,120]
[421920348,1778332296000,-4069.21801709,0.0004177,30]
[421920292,1778332296000,-500.0,0.0004177,120]
[421920295,1778332296000,-500.0,0.0004177,120]
[421920294,1778332296000,-500.0,0.0004177,120]
[421920293,1778332296000,-500.0,0.0004177,120]
[421920299,1778332296000,-500.0,0.0004177,120]
[421920296,1778332296000,-500.0,0.0004177,120]
[421920298,1778332296000,-500.0,0.0004177,120]
[421920297,1778332296000,-500.0,0.0004177,120]
[421920302,1778332296000,-500.0,0.0004177,120]
[421920301,1778332296000,-500.0,0.0004177,120]
[421920303,1778332296000,-500.0,0.0004177,120]
[421920304,1778332296000,-199.22412538,0.0004177,120]
[421920305,1778332296000,-331.99,0.0004177,120]
[421920306,1778332296000,-37073.22,0.0004177,120]
[421920311,1778332296000,-37073.22,0.0004177,120]
[421920308,1778332296000,-37073.22,0.0004177,120]
[421920309,1778332296000,-37073.22,0.0004177,120]
[421920310,1778332296000,-37073.22,0.0004177,120]
[421920307,1778332296000,-37073.22,0.0004177,120]
[421920312,1778332296000,-37073.22,0.0004177,120]
[421920315,1778332296000,-37073.22,0.0004177,120]
[421920316,1778332296000,-37073.22,0.0004177,120]
[421920314,1778332296000,-37073.22,0.0004177,120]
[421920321,1778332296000,-500.0,0.0004177,120]
[421920317,1778332296000,-37073.32,0.0004177,120]
[421920319,1778332296000,-500.0,0.0004177,120]
[421920313,1778332296000,-37073.22,0.0004177,120]
[421920350,1778332296000,-500.0,0.0004177,120]
[421920338,1778332296000,-500.0,0.0004177,120]
[421920355,1778332296000,-500.0,0.0004177,120]
[421920387,1778332296000,-1666.65,0.0004177,120]
[421920384,1778332296000,-5000.0,0.0004177,120]
[421920388,1778332296000,-5000.0,0.0004177,120]
[421920385,1778332296000,-1666.65,0.0004177,120]
[421920386,1778332296000,-5000.0,0.0004177,120]
[421920395,1778332296000,-1666.65,0.0004177,120]
[421920396,1778332296000,-1666.65,0.0004177,120]
[421920390,1778332296000,-172.0,0.0004177,120]
[421920391,1778332296000,-1666.65,0.0004177,120]
[421920389,1778332296000,-1666.65,0.0004177,120]
[421920394,1778332296000,-1666.65,0.0004177,120]
[421920392,1778332296000,-1666.65,0.0004177,120]
[421920397,1778332296000,-1666.65,0.0004177,120]
[421920398,1778332296000,-1666.65,0.0004177,120]
[421920402,1778332296000,-1666.65,0.0004177,120]
[421920404,1778332296000,-1666.65,0.0004177,120]
[421920401,1778332296000,-1666.65,0.0004177,120]
[421920406,1778332296000,-1666.65,0.0004177,120]
[421920409,1778332296000,-217.53970089,0.0004177,120]
[421920403,1778332296000,-1666.65,0.0004177,120]
[421920408,1778332296000,-1666.65,0.0004177,120]
[421920405,1778332296000,-1666.65,0.0004177,120]
[421920399,1778332296000,-1666.65,0.0004177,120]
[421920400,1778332296000,-1666.65,0.0004177,120]
[421920407,1778332296000,-1666.65,0.0004177,120]
[421920410,1778332296000,-1666.65,0.0004177,120]
[421920353,1778332296000,-500.0,0.0004177,120]
[421920378,1778332296000,-265.69603965,0.0004177,120]
[421920379,1778332296000,-576.61437099,0.0004177,120]
[421920393,1778332296000,-1666.65,0.0004177,120]
[421920382,1778332296000,-1666.65,0.0004177,120]
[421920349,1778332296000,-500.0,0.0004177,120]
[421920370,1778332296000,-396.77329421,0.0004177,120]
[421920352,1778332296000,-500.0,0.0004177,120]
[421920351,1778332296000,-500.0,0.0004177,120]
[421920354,1778332296000,-500.0,0.0004177,120]
[421920358,1778332296000,-500.0,0.0004177,120]
[421920359,1778332296000,-640.82573574,0.0004177,120]
[421920369,1778332296000,-217.32806019,0.0004177,120]
[421920360,1778332296000,-188.30900527,0.0004177,120]
[421920357,1778332296000,-500.0,0.0004177,120]
[421920365,1778332296000,-358.08238889,0.0004177,120]
[421920361,1778332296000,-333.23,0.0004177,120]
[421920366,1778332296000,-177.30379863,0.0004177,120]
[421920362,1778332296000,-240.53628806,0.0004177,120]
[421920368,1778332296000,-232.84559949,0.0004177,120]
[421920375,1778332296000,-5000.0,0.0004177,120]
[421920373,1778332296000,-5000.0,0.0004177,30]
[421920367,1778332296000,-209.04982346,0.0004177,120]
[421920380,1778332296000,-268.01941167,0.0004177,120]
[421920374,1778332296000,-5000.0,0.0004177,120]
[421920372,1778332296000,-380.03579334,0.0004177,120]
[421920376,1778332296000,-5000.0,0.0004177,120]
[421920371,1778332296000,-338.48042707,0.0004177,120]
[421920377,1778332296000,-5000.0,0.0004177,120]
[421920381,1778332296000,-3793.0,0.0004177,30]
[421920363,1778332296000,-263.04143908,0.0004177,60]
[421920364,1778332296000,-211.37590694,0.0004177,120]
[421920383,1778332296000,-229.25408993,0.0004177,120]
[421920452,1778332297000,-627.4881872,0.0004177,120]
[421920451,1778332297000,-1632.54,0.0004177,120]
[421920463,1778332297000,-196.63906841,0.0004177,120]
[421920462,1778332297000,-209.66505016,0.0004177,120]
[421920448,1778332297000,-500.0,0.0004177,120]
[421920445,1778332297000,-1632.54,0.0004177,120]
[421920442,1778332297000,-291.8779664,0.0004177,120]
[421920441,1778332297000,-500.0,0.0004177,120]
[421920443,1778332297000,-1632.54,0.0004177,120]
[421920438,1778332297000,-1632.54,0.0004177,120]
[421920456,1778332297000,-1632.54,0.0004177,120]
[421920450,1778332297000,-500.0,0.0004177,120]
[421920457,1778332297000,-1632.54,0.0004177,120]
[421920471,1778332297000,-4757.07,0.0004177,120]
[421920453,1778332297000,-1632.54,0.0004177,120]
[421920455,1778332297000,-1632.54,0.0004177,120]
[421920460,1778332297000,-236.17702742,0.0004177,120]
[421920461,1778332297000,-476.61912045,0.0004177,120]
[421920458,1778332297000,-1632.73875306,0.0004177,120]
[421920459,1778332297000,-580.44213797,0.0004177,120]
[421920464,1778332297000,-500.0,0.0004177,120]
[421920465,1778332297000,-157.51570741,0.0004177,120]
[421920466,1778332297000,-271.61153357,0.0004177,120]
[421920469,1778332297000,-4757.07,0.0004177,120]
[421920468,1778332297000,-4757.07,0.0004177,120]
[421920467,1778332297000,-155.85739508,0.0004177,120]
[421920449,1778332297000,-1632.54,0.0004177,120]
[421920454,1778332297000,-1632.54,0.0004177,120]
[421920446,1778332297000,-500.0,0.0004177,120]
[421920421,1778332297000,-1632.54,0.0004177,120]
[421920440,1778332297000,-1632.54,0.0004177,120]
[421920411,1778332297000,-1666.84659304,0.0004177,120]
[421920412,1778332297000,-366.41222681,0.0004177,120]
[421920422,1778332297000,-1632.54,0.0004177,120]
[421920420,1778332297000,-1632.54,0.0004177,120]
[421920415,1778332297000,-14396.60913232,0.0004177,120]
[421920419,1778332297000,-1632.54,0.0004177,120]
[421920414,1778332297000,-1452.05,0.0004177,120]
[421920416,1778332297000,-612.59841999,0.0004177,120]
[421920423,1778332297000,-239.89642602,0.0004177,120]
[421920417,1778332297000,-262.6544409,0.0004177,120]
[421920413,1778332297000,-280.09477487,0.0004177,120]
[421920418,1778332297000,-299.10310801,0.0004177,120]
[421920433,1778332297000,-500.0,0.0004177,120]
[421920447,1778332297000,-1632.54,0.0004177,120]
[421920425,1778332297000,-1632.54,0.0004177,120]
[421920428,1778332297000,-176.18807113,0.0004177,120]
[421920427,1778332297000,-500.0,0.0004177,120]
[421920432,1778332297000,-1632.54,0.0004177,120]
[421920434,1778332297000,-500.0,0.0004177,120]
[421920426,1778332297000,-1632.54,0.0004177,120]
[421920424,1778332297000,-1632.54,0.0004177,120]
[421920435,1778332297000,-613.23024041,0.0004177,120]
[421920429,1778332297000,-1632.54,0.0004177,120]
[421920430,1778332297000,-500.0,0.0004177,120]
[421920431,1778332297000,-1632.54,0.0004177,120]
[421920437,1778332297000,-500.0,0.0004177,120]
[421920439,1778332297000,-500.0,0.0004177,120]
[421920444,1778332297000,-500.0,0.0004177,120]
[421920436,1778332297000,-1632.54,0.0004177,120]
[421920473,1778332297000,-4757.07,0.0004177,120]
[421920470,1778332297000,-1427.45759643,0.0004177,120]
[421920474,1778332297000,-4757.07,0.0004177,120]
[421920512,1778332297000,-500.0,0.0004177,120]
[421920504,1778332297000,-500.0,0.0004177,120]
[421920505,1778332297000,-500.0,0.0004177,120]
[421920508,1778332297000,-177.4715508,0.0004177,120]
[421920503,1778332297000,-500.0,0.0004177,120]
[421920509,1778332297000,-569.4073,0.0004177,120]
[421920513,1778332297000,-623.74022746,0.0004177,2]
[421920515,1778332297000,-500.0,0.0004177,120]
[421920516,1778332297000,-500.0,0.0004177,120]
[421920521,1778332297000,-500.0,0.0004177,120]
[421920514,1778332297000,-500.0,0.0004177,120]
[421920517,1778332297000,-500.0,0.0004177,120]
[421920524,1778332297000,-649.6295992,0.0004177,120]
[421920510,1778332297000,-303.21524953,0.0004177,120]
[421920520,1778332297000,-500.0,0.0004177,120]
[421920522,1778332297000,-500.0,0.0004177,120]
[421920525,1778332297000,-500.0,0.0004177,120]
[421920523,1778332297000,-500.0,0.0004177,120]
[421920528,1778332297000,-500.0,0.0004177,120]
[421920526,1778332297000,-500.0,0.0004177,120]
[421920530,1778332297000,-415.51055248,0.0004177,120]
[421920527,1778332297000,-500.0,0.0004177,120]
[421920534,1778332297000,-500.0,0.0004177,120]
[421920533,1778332297000,-500.0,0.0004177,120]
[421920532,1778332297000,-162.48899595,0.0004177,120]
[421920529,1778332297000,-500.0,0.0004177,120]
[421920531,1778332297000,-500.0,0.0004177,120]
[421920472,1778332297000,-4757.07,0.0004177,120]
[421920518,1778332297000,-500.0,0.0004177,120]
[421920501,1778332297000,-500.0,0.0004177,120]
[421920519,1778332297000,-500.0,0.0004177,120]
[421920511,1778332297000,-299.92021023,0.0004177,60]
[421920507,1778332297000,-500.0,0.0004177,120]
[421920475,1778332297000,-4757.07,0.0004177,120]
[421920477,1778332297000,-4757.07,0.0004177,120]
[421920478,1778332297000,-4757.07,0.0004177,120]
[421920481,1778332297000,-4757.07,0.0004177,120]
[421920480,1778332297000,-4757.07,0.0004177,120]
[421920484,1778332297000,-4757.07,0.0004177,120]
[421920479,1778332297000,-4757.07,0.0004177,120]
[421920482,1778332297000,-4757.07,0.0004177,120]
[421920483,1778332297000,-4757.07,0.0004177,120]
[421920486,1778332297000,-4757.07,0.0004177,120]
[421920489,1778332297000,-569.47008998,0.0004177,120]
[421920487,1778332297000,-4757.07,0.0004177,120]
[421920488,1778332297000,-4757.07,0.0004177,120]
[421920476,1778332297000,-4757.07,0.0004177,120]
[421920490,1778332297000,-4757.07,0.0004177,120]
[421920485,1778332297000,-382.57907264,0.0004177,120]
[421920502,1778332297000,-174.01659298,0.0004177,120]
[421920499,1778332297000,-500.0,0.0004177,120]
[421920491,1778332297000,-5036.07390292,0.0004177,30]
[421920494,1778332297000,-4757.07,0.0004177,120]
[421920498,1778332297000,-500.0,0.0004177,120]
[421920506,1778332297000,-500.0,0.0004177,120]
[421920496,1778332297000,-4757.29683627,0.0004177,120]
[421920493,1778332297000,-4757.07,0.0004177,120]
[421920495,1778332297000,-581.84632049,0.0004177,120]
[421920492,1778332297000,-4757.07,0.0004177,120]
[421920500,1778332297000,-500.0,0.0004177,120]
[421920497,1778332297000,-298.59125075,0.0004177,30]
[421920585,1778332298000,-356.45412225,0.0004177,120]
[421920575,1778332298000,-297.29916667,0.0004177,120]
[421920576,1778332298000,-500.0,0.0004177,120]
[421920573,1778332298000,-180.20483003,0.0004177,120]
[421920572,1778332298000,-500.0,0.0004177,120]
[421920586,1778332298000,-500.0,0.0004177,120]
[421920567,1778332298000,-199.03239467,0.0004177,120]
[421920590,1778332298000,-209.5865,0.0004177,120]
[421920566,1778332298000,-257.88989451,0.0004177,120]
[421920568,1778332298000,-257.21806553,0.0004177,120]
[421920565,1778332298000,-172.4746309,0.0004177,30]
[421920580,1778332298000,-194.93947677,0.0004177,120]
[421920584,1778332298000,-310.92152771,0.0004177,120]
[421920582,1778332298000,-500.0,0.0004177,120]
[421920588,1778332298000,-161.67957482,0.0004177,120]
[421920577,1778332298000,-500.0,0.0004177,120]
[421920579,1778332298000,-165.9208705,0.0004177,120]
[421920581,1778332298000,-500.0,0.0004177,120]
[421920583,1778332298000,-202.46998423,0.0004177,120]
[421920594,1778332298000,-436.67812049,0.0004177,120]
[421920596,1778332298000,-500.0,0.0004177,120]
[421920589,1778332298000,-500.0,0.0004177,120]
[421920597,1778332298000,-500.0,0.0004177,120]
[421920599,1778332298000,-254.88494824,0.0004177,120]
[421920595,1778332298000,-152.95191504,0.0004177,120]
[421920587,1778332298000,-500.0,0.0004177,120]
[421920591,1778332298000,-191.9583486,0.0004177,120]
[421920569,1778332298000,-208.66977071,0.0004177,120]
[421920578,1778332298000,-532.3813,0.0004177,120]
[421920560,1778332298000,-500.0,0.0004177,120]
[421920535,1778332298000,-153.2767327,0.0004177,120]
[421920564,1778332298000,-277.095852,0.0004177,120]
[421920538,1778332298000,-500.0,0.0004177,120]
[421920537,1778332298000,-500.0,0.0004177,120]
[421920544,1778332298000,-611.33382132,0.0004177,120]
[421920539,1778332298000,-500.0,0.0004177,120]
[421920536,1778332298000,-500.0,0.0004177,120]
[421920541,1778332298000,-429.17873725,0.0004177,120]
[421920542,1778332298000,-234.51206961,0.0004177,120]
[421920540,1778332298000,-428.27137236,0.0004177,120]
[421920543,1778332298000,-177.75871181,0.0004177,120]
[421920545,1778332298000,-100971.55052308,0.0004177,90]
[421920547,1778332298000,-355.76732206,0.0004177,120]
[421920546,1778332298000,-430.20762269,0.0004177,120]
[421920549,1778332298000,-500.0,0.0004177,120]
[421920563,1778332298000,-297.22061548,0.0004177,120]
[421920548,1778332298000,-500.0,0.0004177,120]
[421920550,1778332298000,-500.0,0.0004177,120]
[421920557,1778332298000,-500.0,0.0004177,120]
[421920552,1778332298000,-500.0,0.0004177,120]
[421920551,1778332298000,-500.0,0.0004177,120]
[421920556,1778332298000,-500.0,0.0004177,120]
[421920553,1778332298000,-500.0,0.0004177,120]
[421920555,1778332298000,-500.0,0.0004177,120]
[421920554,1778332298000,-500.0,0.0004177,120]
[421920559,1778332298000,-500.0,0.0004177,120]
[421920561,1778332298000,-353.80880897,0.0004177,120]
[421920562,1778332298000,-318.95789576,0.0004177,120]
[421920571,1778332298000,-186.60767549,0.0004177,120]
[421920570,1778332298000,-471.30392858,0.0004177,120]
[421920558,1778332298000,-500.0,0.0004177,120]
[421920592,1778332298000,-7300.37085516,0.0004177,30]
[421920574,1778332298000,-228.036841,0.0004177,120]
[421920593,1778332298000,-252.17227775,0.0004177,120]
[421920628,1778332298000,-378.7958708,0.0004177,120]
[421920633,1778332298000,-273.35276831,0.0004177,30]
[421920638,1778332298000,-184.2964612,0.0004177,120]
[421920630,1778332298000,-242.42190088,0.0004177,120]
[421920632,1778332298000,-526.21774966,0.0004177,120]
[421920634,1778332298000,-285.18854035,0.0004177,120]
[421920639,1778332298000,-2102.77056124,0.0004177,30]
[421920641,1778332298000,-30049.40197993,0.0004177,120]
[421920640,1778332298000,-184.18331938,0.0004177,120]
[421920644,1778332298000,-2483.28778574,0.0004177,30]
[421920642,1778332298000,-525.8903155,0.0004177,120]
[421920643,1778332298000,-791.62288212,0.0004177,30]
[421920645,1778332298000,-1242.999999,0.0004177,30]
[421920646,1778332298000,-385.2374058,0.0004177,120]
[421920649,1778332298000,-4304.15177729,0.0004177,30]
[421920647,1778332298000,-1006.63116303,0.0004177,120]
[421920648,1778332298000,-233.18022259,0.0004177,120]
[421920651,1778332298000,-3242.21216538,0.0004177,30]
[421920650,1778332298000,-4373.99294531,0.0004177,30]
[421920653,1778332298000,-6022.97821496,0.0004177,30]
[421920652,1778332298000,-5019.61988602,0.0004177,30]
[421920655,1778332298000,-500.0,0.0004177,120]
[421920654,1778332298000,-3281.67654481,0.0004177,120]
[421920656,1778332298000,-339.25365833,0.0004177,120]
[421920661,1778332298000,-211.38209554,0.0004177,120]
[421920660,1778332298000,-409.16613776,0.0004177,120]
[421920657,1778332298000,-207.27490201,0.0004177,90]
[421920659,1778332298000,-351.71882696,0.0004177,120]
[421920598,1778332298000,-581.91974914,0.0004177,120]
[421920629,1778332298000,-500.0,0.0004177,120]
[421920631,1778332298000,-500.0,0.0004177,120]
[421920658,1778332298000,-413.40090507,0.0004177,120]
[421920637,1778332298000,-375.91211528,0.0004177,60]
[421920627,1778332298000,-614.58307772,0.0004177,30]
[421920610,1778332298000,-201233.47827962,0.0004177,2]
[421920613,1778332298000,-500.0,0.0004177,120]
[421920601,1778332298000,-199.1702884,0.0004177,30]
[421920605,1778332298000,-226.14977081,0.0004177,120]
[421920612,1778332298000,-213.14918002,0.0004177,120]
[421920606,1778332298000,-2611.12435294,0.0004177,30]
[421920603,1778332298000,-6385.04949572,0.0004177,30]
[421920611,1778332298000,-2994.26715046,0.0004177,30]
[421920602,1778332298000,-195.18374814,0.0004177,120]
[421920609,1778332298000,-221.24290987,0.0004177,120]
[421920600,1778332298000,-2283.64047556,0.0004177,120]
[421920607,1778332298000,-725.57976648,0.0004177,30]
[421920604,1778332298000,-3021.25343077,0.0004177,30]
[421920608,1778332298000,-1901.04420407,0.0004177,30]
[421920617,1778332298000,-208.99537842,0.0004177,120]
[421920614,1778332298000,-364.2317515,0.0004177,120]
[421920635,1778332298000,-288.15959449,0.0004177,120]
[421920623,1778332298000,-500.0,0.0004177,120]
[421920624,1778332298000,-500.0,0.0004177,120]
[421920621,1778332298000,-500.0,0.0004177,120]
[421920620,1778332298000,-500.0,0.0004177,120]
[421920636,1778332298000,-190.49847654,0.0004177,120]
[421920626,1778332298000,-500.0,0.0004177,120]
[421920622,1778332298000,-1087.69391499,0.0004177,120]
[421920615,1778332298000,-203.69876448,0.0004177,120]
[421920619,1778332298000,-500.0,0.0004177,120]
[421920616,1778332298000,-183.79653741,0.0004177,120]
[421920618,1778332298000,-2504.38766337,0.0004177,30]
[421920625,1778332298000,-500.0,0.0004177,120]
[421920703,1778332299000,-2339.45,0.0004177,120]
[421920699,1778332299000,-2339.45,0.0004177,120]
[421920700,1778332299000,-2339.45,0.0004177,120]
[421920701,1778332299000,-2339.45,0.0004177,120]
[421920697,1778332299000,-2339.45,0.0004177,120]
[421920691,1778332299000,-2339.45,0.0004177,120]
[421920695,1778332299000,-156.48727122,0.0004177,120]
[421920696,1778332299000,-468.6671001,0.0004177,120]
[421920702,1778332299000,-2339.45,0.0004177,120]
[421920694,1778332299000,-500.0,0.0004177,120]
[421920698,1778332299000,-279.87446606,0.0004177,120]
[421920692,1778332299000,-500.0,0.0004177,120]
[421920706,1778332299000,-2339.45,0.0004177,120]
[421920704,1778332299000,-2339.45,0.0004177,120]
[421920711,1778332299000,-2339.45,0.0004177,120]
[421920709,1778332299000,-2339.45,0.0004177,120]
[421920712,1778332299000,-2339.45,0.0004177,120]
[421920710,1778332299000,-2339.45,0.0004177,120]
[421920707,1778332299000,-2339.45,0.0004177,120]
[421920708,1778332299000,-2339.45,0.0004177,120]
[421920713,1778332299000,-2339.45,0.0004177,120]
[421920714,1778332299000,-2339.45,0.0004177,120]
[421920715,1778332299000,-2339.45,0.0004177,120]
[421920716,1778332299000,-2339.45,0.0004177,120]
[421920693,1778332299000,-2339.45,0.0004177,120]
[421920724,1778332299000,-1097.33,0.0004177,120]
[421920705,1778332299000,-2339.45,0.0004177,120]
[421920690,1778332299000,-2339.45,0.0004177,120]
[421920674,1778332299000,-500.0,0.0004177,120]
[421920683,1778332299000,-500.0,0.0004177,120]
[421920722,1778332299000,-1097.33,0.0004177,120]
[421920663,1778332299000,-500.0,0.0004177,120]
[421920664,1778332299000,-500.0,0.0004177,120]
[421920662,1778332299000,-179.43275313,0.0004177,120]
[421920665,1778332299000,-500.0,0.0004177,120]
[421920672,1778332299000,-500.0,0.0004177,120]
[421920670,1778332299000,-500.0,0.0004177,120]
[421920673,1778332299000,-500.0,0.0004177,120]
[421920669,1778332299000,-500.0,0.0004177,120]
[421920675,1778332299000,-500.0,0.0004177,120]
[421920676,1778332299000,-500.0,0.0004177,120]
[421920667,1778332299000,-500.0,0.0004177,120]
[421920685,1778332299000,-593.34084656,0.0004177,120]
[421920671,1778332299000,-500.0,0.0004177,120]
[421920668,1778332299000,-500.0,0.0004177,120]
[421920678,1778332299000,-500.0,0.0004177,120]
[421920688,1778332299000,-500.0,0.0004177,120]
[421920687,1778332299000,-2339.45,0.0004177,120]
[421920679,1778332299000,-500.0,0.0004177,120]
[421920689,1778332299000,-500.0,0.0004177,120]
[421920677,1778332299000,-500.0,0.0004177,120]
[421920684,1778332299000,-500.0,0.0004177,120]
[421920681,1778332299000,-500.0,0.0004177,120]
[421920686,1778332299000,-500.0,0.0004177,120]
[421920682,1778332299000,-500.0,0.0004177,120]
[421920680,1778332299000,-500.0,0.0004177,120]
[421920666,1778332299000,-500.0,0.0004177,120]
[421920717,1778332299000,-2339.6389856,0.0004177,120]
[421920738,1778332299000,-155.47593251,0.0004177,120]
[421920719,1778332299000,-193.41104861,0.0004177,120]
[421920754,1778332299000,-208.97600061,0.0004177,120]
[421920764,1778332299000,-202.26033437,0.0004177,120]
[421920753,1778332299000,-212.1677,0.0004177,120]
[421920761,1778332299000,-159.92640731,0.0004177,120]
[421920756,1778332299000,-222.99714622,0.0004177,120]
[421920755,1778332299000,-472.0875265,0.0004177,120]
[421920759,1778332299000,-500.0,0.0004177,120]
[421920760,1778332299000,-500.0,0.0004177,120]
[421920758,1778332299000,-508.59217221,0.0004177,120]
[421920763,1778332299000,-294.16121643,0.0004177,120]
[421920762,1778332299000,-208.31725061,0.0004177,120]
[421920757,1778332299000,-160.63017464,0.0004177,120]
[421920766,1778332299000,-428.38074489,0.0004177,120]
[421920765,1778332299000,-205.72065894,0.0004177,120]